[Event "Campeonato de Aragón Individual Absoluto 2022"]
[Site "Zaragoza, Spain"]
[Date "2022.09.02"]
[Round "7.5"]
[White "Sanjuan Segura, Ignacio"]
[Black "Lorente Melcon, Nicolas"]
[Result "1/2-1/2"]
[TimeControl "90 min + 30 sg"]
[WhiteElo "1815"]
[BlackElo "1685"]

1. d4 {[%clk 01:30:47]} {[%emt 00:00:12]} d5 {[%clk 01:30:50]} {[%emt
00:00:10]} 2. Nf3 {[%clk 01:30:43]} {[%emt 00:00:34]} Nf6 {[%clk 01:31:18]}
{[%emt 00:00:02]} 3. Bg5 {[%clk 01:31:02]} {[%emt 00:00:10]} e6 {[%clk
01:31:34]} {[%emt 00:00:15]} 4. e3 {[%clk 01:31:26]} {[%emt 00:00:06]} Be7
{[%clk 01:31:58]} {[%emt 00:00:05]} 5. Nbd2 {[%clk 01:31:50]} {[%emt 00:00:06]}
Nbd7 {[%clk 01:32:05]} {[%emt 00:00:24]} 6. Bd3 {[%clk 01:32:12]} {[%emt
00:00:07]} h6 {[%clk 01:32:30]} {[%emt 00:00:06]} 7. Bh4 {[%clk 01:32:23]}
{[%emt 00:00:19]} O-O {[%clk 01:32:54]} {[%emt 00:00:06]} 8. O-O {[%clk
01:32:47]} {[%emt 00:00:06]} b6 {[%clk 01:33:04]} {[%emt 00:00:21]} 9. c4
{[%clk 01:29:32]} {[%emt 00:03:45]} Bb7 {[%clk 01:32:54]} {[%emt 00:00:39]} 10.
cxd5 {[%clk 01:28:52]} {[%emt 00:01:10]} exd5 {[%clk 01:32:15]} {[%emt
00:01:10]} 11. Rc1 {[%clk 01:27:56]} {[%emt 00:01:25]} c5 {[%clk 01:32:14]}
{[%emt 00:00:31]} 12. b3 {[%clk 01:27:50]} {[%emt 00:00:35]} Rc8 {[%clk
01:32:07]} {[%emt 00:00:37]} 13. Qe2 {[%clk 01:28:11]} {[%emt 00:00:09]} Ne4
{[%clk 01:31:30]} {[%emt 00:01:08]} 14. Bxe7 {[%clk 01:28:26]} {[%emt
00:00:14]} Qxe7 {[%clk 01:31:58]} {[%emt 00:00:02]} 15. Rfd1 {[%clk 01:27:47]}
{[%emt 00:01:08]} Rfd8 {[%clk 01:31:47]} {[%emt 00:00:43]} 16. Ba6 {[%clk
01:24:53]} {[%emt 00:03:23]} Ndf6 {[%clk 01:26:53]} {[%emt 00:05:24]} 17. Bxb7
{[%clk 01:24:36]} {[%emt 00:00:48]} Qxb7 {[%clk 01:27:21]} {[%emt 00:00:02]} 18.
dxc5 {[%clk 01:21:18]} {[%emt 00:03:47]} Rxc5 {[%clk 01:21:35]} {[%emt
00:06:16]} 19. Nxe4 {[%clk 01:16:10]} {[%emt 00:05:38]} Nxe4 {[%clk 01:21:35]}
{[%emt 00:00:30]} 20. Rxc5 {[%clk 01:09:08]} {[%emt 00:07:33]} Nxc5 {[%clk
01:14:22]} {[%emt 00:07:43]} 21. h3 {[%clk 01:08:13]} {[%emt 00:01:24]} Ne4
{[%clk 01:08:26]} {[%emt 00:06:27]} 22. Rc1 {[%clk 00:56:12]} {[%emt 00:12:30]}
Rc8 {[%clk 01:07:28]} {[%emt 00:01:28]} 23. Qb2 {[%clk 00:55:43]} {[%emt
00:00:59]} Rc7 {[%clk 01:02:43]} {[%emt 00:05:15]} 24. Nd4 {[%clk 00:51:20]}
{[%emt 00:04:53]} Nd6 {[%clk 00:52:33]} {[%emt 00:10:41]} 25. Rc2 {[%clk
00:45:59]} {[%emt 00:05:50]} Qc8 {[%clk 00:51:42]} {[%emt 00:01:23]} 26. Rxc7
{[%clk 00:44:52]} {[%emt 00:01:37]} Qxc7 {[%clk 00:52:09]} {[%emt 00:00:02]} 27.
Qc2 {[%clk 00:45:19]} {[%emt 00:00:03]} Qxc2 {[%clk 00:50:52]} {[%emt
00:01:47]} 28. Nxc2 {[%clk 00:45:48]} {[%emt 00:00:01]} a5 {[%clk 00:49:05]}
{[%emt 00:02:17]} 29. Kf1 {[%clk 00:43:55]} {[%emt 00:02:23]} Kf8 {[%clk
00:48:08]} {[%emt 00:01:27]} 30. f3 {[%clk 00:43:37]} {[%emt 00:00:47]} Ke7
{[%clk 00:47:03]} {[%emt 00:01:36]} 31. Ke2 {[%clk 00:42:56]} {[%emt 00:01:11]}
Kf6 {[%clk 00:45:58]} {[%emt 00:01:35]} 32. Kd3 {[%clk 00:40:36]} {[%emt
00:02:50]} Ke5 {[%clk 00:45:36]} {[%emt 00:00:53]} 33. Nd4 {[%clk 00:40:02]}
{[%emt 00:01:03]} f5 {[%clk 00:38:22]} {[%emt 00:07:45]} 34. Nc6+ {[%clk
00:38:39]} {[%emt 00:01:52]} Ke6 {[%clk 00:38:32]} {[%emt 00:00:21]} 35. Nb8
{[%clk 00:34:59]} {[%emt 00:04:10]} h5 {[%clk 00:34:57]} {[%emt 00:04:05]} 36.
h4 {[%clk 00:31:13]} {[%emt 00:04:17]} Ne8 {[%clk 00:30:25]} {[%emt 00:05:02]}
37. Nc6 {[%clk 00:30:20]} {[%emt 00:01:23]} Nd6 {[%clk 00:28:59]} {[%emt
00:01:57]} 38. Nd4+ {[%clk 00:24:36]} {[%emt 00:06:13]} Ke5 {[%clk 00:28:38]}
{[%emt 00:00:51]} 39. Ne2 {[%clk 00:24:24]} {[%emt 00:00:42]} Ne8 {[%clk
00:22:56]} {[%emt 00:06:13]} 40. Nc3 {[%clk 00:23:47]} {[%emt 00:01:06]} Nc7
{[%clk 00:19:55]} {[%emt 00:03:32]} 41. f4+ {[%clk 00:23:15]} {[%emt 00:01:03]}
Kd6 {[%clk 00:17:33]} {[%emt 00:02:52]} 42. a3 {[%clk 00:18:28]} {[%emt
00:05:17]} Ke6 {[%clk 00:17:11]} {[%emt 00:00:52]} 43. Na2 {[%clk 00:12:16]}
{[%emt 00:06:42]} Nb5 {[%clk 00:15:12]} {[%emt 00:02:29]} 44. a4 {[%clk
00:12:19]} {[%emt 00:00:26]} Nc7 {[%clk 00:15:21]} {[%emt 00:00:21]} 45. b4
{[%clk 00:11:47]} {[%emt 00:01:03]} Ke5 {[%emt 00:00:36]} 46. Ke4+ 1/2-1/2

[Event "Campeonato de Aragón Individual Absoluto 2022"]
[Site "Zaragoza, Spain"]
[Date "2022.09.03"]
[Round "8.1"]
[White "Glavina, Pablo"]
[Black "Quintin Navarro, Alberto"]
[Result "1/2-1/2"]
[TimeControl "90 min + 30 sg"]
[WhiteElo "2394"]
[BlackElo "2372"]

1. d4 {[%clk 01:30:57]} {[%emt 00:00:03]} d5 {[%clk 01:30:54]} {[%emt
00:00:06]} 2. c4 {[%clk 01:31:21]} {[%emt 00:00:06]} c6 {[%clk 01:31:19]}
{[%emt 00:00:05]} 3. cxd5 {[%clk 01:31:47]} {[%emt 00:00:04]} cxd5 {[%clk
01:31:45]} {[%emt 00:00:05]} 4. Nc3 {[%clk 01:32:13]} {[%emt 00:00:04]} Nf6
{[%clk 01:32:10]} {[%emt 00:00:05]} 5. Nf3 {[%clk 01:32:39]} {[%emt 00:00:04]}
Nc6 {[%clk 01:32:36]} {[%emt 00:00:04]} 6. Bf4 {[%clk 01:33:03]} {[%emt
00:00:05]} Bf5 {[%clk 01:33:02]} {[%emt 00:00:05]} 7. e3 {[%clk 01:33:29]}
{[%emt 00:00:05]} e6 {[%clk 01:33:28]} {[%emt 00:00:04]} 8. Bd3 {[%clk
01:33:50]} {[%emt 00:00:09]} Bxd3 {[%clk 01:33:51]} {[%emt 00:00:06]} 9. Qxd3
{[%clk 01:34:15]} {[%emt 00:00:05]} Bd6 {[%clk 01:34:15]} {[%emt 00:00:06]} 10.
Bxd6 {[%clk 01:34:38]} {[%emt 00:00:07]} Qxd6 {[%clk 01:34:41]} {[%emt
00:00:05]} 11. O-O {[%clk 01:35:02]} {[%emt 00:00:07]} O-O {[%clk 01:35:07]}
{[%emt 00:00:04]} 12. a3 {[%clk 01:34:56]} {[%emt 00:00:36]} Na5 {[%clk
01:34:48]} {[%emt 00:00:49]} 13. Ne5 {[%clk 01:34:52]} {[%emt 00:00:33]} Rac8
{[%clk 01:35:04]} {[%emt 00:00:14]} 14. Rac1 {[%clk 01:35:07]} {[%emt
00:00:15]} Nc4 {[%clk 01:34:51]} {[%emt 00:00:44]} 15. Nxc4 {[%clk 01:35:31]}
{[%emt 00:00:06]} Rxc4 {[%clk 01:35:15]} {[%emt 00:00:06]} 16. Ne2 {[%clk
01:35:27]} {[%emt 00:00:34]} 1/2-1/2

[Event "Campeonato de Aragón Individual Absoluto 2022"]
[Site "Zaragoza, Spain"]
[Date "2022.09.03"]
[Round "8.2"]
[White "Garza Marco, Sergio"]
[Black "Ereza Vizcarra, Fernando"]
[Result "1/2-1/2"]
[TimeControl "90 min + 30 sg"]
[WhiteElo "2408"]
[BlackElo "2132"]

1. f4 {[%clk 01:30:59]} d5 {[%clk 01:29:04]} {[%emt 00:01:56]} 2. Nf3 {[%clk
01:31:23]} {[%emt 00:00:06]} g6 {[%clk 01:29:30]} {[%emt 00:00:04]} 3. g3
{[%clk 01:31:47]} {[%emt 00:00:06]} Bg7 {[%clk 01:29:56]} {[%emt 00:00:04]} 4.
Bg2 {[%clk 01:32:13]} {[%emt 00:00:03]} h5 {[%clk 01:29:08]} {[%emt 00:01:18]}
5. d3 {[%clk 01:31:45]} {[%emt 00:00:59]} Nh6 {[%clk 01:27:49]} {[%emt
00:01:49]} 6. c3 {[%clk 01:27:00]} {[%emt 00:05:15]} c5 {[%clk 01:22:56]}
{[%emt 00:05:23]} 7. O-O {[%clk 01:26:57]} {[%emt 00:00:33]} Nc6 {[%clk
01:22:15]} {[%emt 00:01:11]} 8. Na3 {[%clk 01:16:14]} {[%emt 00:11:13]} d4
{[%clk 01:16:52]} {[%emt 00:05:53]} 9. Qc2 {[%clk 01:14:46]} {[%emt 00:01:58]}
Nf5 {[%clk 01:16:23]} {[%emt 00:00:59]} 10. e4 {[%clk 01:12:56]} {[%emt
00:02:20]} dxe3 {[%clk 01:16:23]} {[%emt 00:00:30]} 11. Nc4 {[%clk 01:11:52]}
{[%emt 00:01:34]} h4 {[%clk 01:11:12]} {[%emt 00:05:41]} 12. gxh4 {[%clk
01:10:37]} {[%emt 00:01:44]} Nxh4 {[%clk 01:10:15]} {[%emt 00:01:27]} 13. Nxh4
{[%clk 01:11:01]} {[%emt 00:00:06]} Rxh4 {[%clk 01:10:39]} {[%emt 00:00:06]} 14.
Bxe3 {[%clk 01:11:27]} {[%emt 00:00:04]} Bh3 {[%clk 01:08:34]} {[%emt
00:02:35]} 15. Rad1 {[%clk 00:45:14]} {[%emt 00:26:43]} Rg4 {[%clk 01:01:13]}
{[%emt 00:07:51]} 16. Rf2 {[%clk 00:43:57]} {[%emt 00:01:47]} Qd5 {[%clk
01:01:20]} {[%emt 00:00:23]} 17. Qe2 {[%clk 00:43:30]} {[%emt 00:00:57]} Qh5
{[%clk 00:55:39]} {[%emt 00:06:11]} 18. Rd2 {[%clk 00:41:03]} {[%emt 00:02:57]}
O-O-O {[%clk 00:52:26]} {[%emt 00:03:42]} 19. Kh1 {[%clk 00:40:19]} {[%emt
00:01:14]} Bxg2+ {[%clk 00:50:23]} {[%emt 00:02:34]} 20. Rxg2 {[%clk 00:40:39]}
{[%emt 00:00:10]} 1/2-1/2

[Event "Campeonato de Aragón Individual Absoluto 2022"]
[Site "Zaragoza, Spain"]
[Date "2022.09.03"]
[Round "8.3"]
[White "Perez Tomas, Juan Manuel"]
[Black "Vela Frago, Alberto"]
[Result "0-1"]
[TimeControl "90 min + 30 sg"]
[WhiteElo "1664"]
[BlackElo "2232"]

1. e4 {[%clk 01:30:59]} {[%emt 00:00:01]} e5 {[%clk 01:30:49]} {[%emt
00:00:11]} 2. Bc4 {[%clk 01:30:44]} {[%emt 00:00:45]} Nf6 {[%clk 01:30:38]}
{[%emt 00:00:41]} 3. d3 {[%clk 01:31:06]} {[%emt 00:00:08]} Bc5 {[%clk
01:30:52]} {[%emt 00:00:16]} 4. Nf3 {[%clk 01:31:27]} {[%emt 00:00:10]} Nc6
{[%clk 01:30:59]} {[%emt 00:00:23]} 5. c3 {[%clk 01:31:40]} {[%emt 00:00:17]}
O-O {[%clk 01:31:09]} {[%emt 00:00:20]} 6. Nbd2 {[%clk 01:29:58]} {[%emt
00:02:13]} a5 {[%clk 01:29:48]} {[%emt 00:01:51]} 7. h3 {[%clk 01:27:51]}
{[%emt 00:02:37]} h6 {[%clk 01:29:34]} {[%emt 00:00:44]} 8. Nf1 {[%clk
01:26:34]} {[%emt 00:01:47]} d5 {[%clk 01:27:42]} {[%emt 00:02:22]} 9. exd5
{[%clk 01:23:51]} {[%emt 00:03:14]} Nxd5 {[%clk 01:28:06]} {[%emt 00:00:06]} 10.
Ng3 {[%clk 01:23:56]} {[%emt 00:00:25]} Nb6 {[%clk 01:27:29]} {[%emt 00:01:07]}
11. Bb3 {[%clk 01:22:05]} {[%emt 00:02:21]} a4 {[%clk 01:26:56]} {[%emt
00:01:03]} 12. Bc2 {[%clk 01:22:33]} {[%emt 00:00:03]} f5 {[%clk 01:27:07]}
{[%emt 00:00:18]} 13. O-O {[%clk 01:18:32]} {[%emt 00:04:31]} Qf6 {[%clk
01:26:44]} {[%emt 00:00:53]} 14. Be3 {[%clk 01:15:32]} {[%emt 00:03:30]} Bxe3
{[%clk 01:25:46]} {[%emt 00:01:28]} 15. fxe3 {[%clk 01:16:01]} {[%emt
00:00:01]} Nd5 {[%clk 01:25:35]} {[%emt 00:00:41]} 16. Qd2 {[%clk 01:14:30]}
{[%emt 00:02:01]} Qg6 {[%clk 01:24:11]} {[%emt 00:01:54]} 17. Kh2 {[%clk
01:13:21]} {[%emt 00:01:40]} Nxe3 {[%clk 01:18:41]} {[%emt 00:06:00]} 18. Qxe3
{[%clk 00:59:57]} {[%emt 00:13:54]} f4 {[%clk 01:18:52]} {[%emt 00:00:19]} 19.
Qe4 {[%clk 00:57:29]} {[%emt 00:02:59]} fxg3+ {[%clk 01:15:41]} {[%emt
00:03:41]} 20. Kg1 {[%clk 00:57:56]} {[%emt 00:00:03]} Qxe4 {[%clk 01:15:33]}
{[%emt 00:00:38]} 21. dxe4 {[%clk 00:58:25]} Be6 {[%clk 01:15:32]} {[%emt
00:00:31]} 22. b3 {[%clk 00:55:24]} {[%emt 00:03:31]} axb3 {[%clk 01:14:34]}
{[%emt 00:01:28]} 23. Bxb3 {[%clk 00:53:09]} {[%emt 00:02:45]} Bxb3 {[%clk
01:10:46]} {[%emt 00:04:18]} 24. axb3 {[%clk 00:53:38]} {[%emt 00:00:01]} Rfd8
{[%clk 01:10:53]} {[%emt 00:00:22]} 25. Rxa8 {[%clk 00:47:25]} {[%emt
00:06:44]} Rxa8 {[%clk 01:11:20]} {[%emt 00:00:03]} 26. Nh4 {[%clk 00:47:01]}
{[%emt 00:00:54]} Ra3 {[%clk 01:08:14]} {[%emt 00:03:35]} 27. Rb1 {[%clk
00:46:35]} {[%emt 00:00:56]} Ne7 {[%clk 01:06:44]} {[%emt 00:02:00]} 28. Nf3
{[%clk 00:46:16]} {[%emt 00:00:49]} Ng6 {[%clk 01:04:46]} {[%emt 00:02:27]} 29.
Kf1 {[%clk 00:38:42]} {[%emt 00:08:03]} Ra2 {[%clk 01:04:31]} {[%emt 00:00:45]}
30. Rd1 {[%clk 00:37:58]} {[%emt 00:01:15]} Rf2+ {[%clk 01:04:40]} {[%emt
00:00:21]} 31. Kg1 {[%clk 00:38:00]} {[%emt 00:00:27]} Nf4 {[%clk 01:04:59]}
{[%emt 00:00:11]} 0-1

[Event "Campeonato de Aragón Individual Absoluto 2022"]
[Site "Zaragoza, Spain"]
[Date "2022.09.03"]
[Round "8.4"]
[White "Villalba Embid, Marcos"]
[Black "Asensio Asensio, Nicolas"]
[Result "1-0"]
[TimeControl "90 min + 30 sg"]
[WhiteElo "2089"]
[BlackElo "1898"]

1. e4 {[%clk 01:30:58]} {[%emt 00:00:01]} c6 {[%clk 01:30:43]} {[%emt
00:00:17]} 2. d4 {[%clk 01:31:23]} {[%emt 00:00:05]} d5 {[%clk 01:31:12]}
{[%emt 00:00:02]} 3. e5 {[%clk 01:31:48]} {[%emt 00:00:05]} Bf5 {[%clk
01:31:33]} {[%emt 00:00:08]} 4. Nc3 {[%clk 01:32:13]} {[%emt 00:00:05]} e6
{[%clk 01:31:40]} {[%emt 00:00:23]} 5. g4 {[%clk 01:32:34]} {[%emt 00:00:09]}
Bg6 {[%clk 01:32:02]} {[%emt 00:00:08]} 6. Nge2 {[%clk 01:33:00]} {[%emt
00:00:04]} c5 {[%clk 01:28:54]} {[%emt 00:03:38]} 7. Be3 {[%clk 01:32:54]}
{[%emt 00:00:36]} Nc6 {[%clk 01:24:14]} {[%emt 00:05:11]} 8. dxc5 {[%clk
01:33:20]} {[%emt 00:00:05]} Nxe5 {[%clk 01:14:10]} {[%emt 00:10:34]} 9. Nf4
{[%clk 01:33:42]} {[%emt 00:00:06]} Nf6 {[%clk 01:01:23]} {[%emt 00:13:17]} 10.
Bb5+ {[%clk 01:34:05]} {[%emt 00:00:07]} Nfd7 {[%clk 00:59:13]} {[%emt
00:02:41]} 11. Qe2 {[%clk 01:31:59]} {[%emt 00:02:36]} a6 {[%clk 00:48:36]}
{[%emt 00:11:07]} 12. Ba4 {[%clk 01:27:33]} {[%emt 00:04:56]} Qa5 {[%clk
00:38:14]} {[%emt 00:10:51]} 13. Bd4 {[%clk 01:24:58]} {[%emt 00:03:05]} Be4
{[%clk 00:37:10]} {[%emt 00:01:35]} 14. Bxe5 {[%clk 01:21:51]} {[%emt
00:03:36]} Bxh1 {[%clk 00:29:31]} {[%emt 00:08:08]} 15. Bxd7+ {[%clk 01:19:02]}
{[%emt 00:03:19]} Kxd7 {[%clk 00:29:59]} {[%emt 00:00:02]} 16. O-O-O {[%clk
01:18:50]} {[%emt 00:00:42]} Bxc5 {[%clk 00:24:47]} {[%emt 00:05:43]} 17. Rxh1
{[%clk 01:18:17]} {[%emt 00:01:03]} f6 {[%clk 00:21:20]} {[%emt 00:03:57]} 18.
Bxf6 {[%clk 01:15:06]} {[%emt 00:03:41]} gxf6 {[%clk 00:21:23]} {[%emt
00:00:28]} 19. Qxe6+ {[%clk 01:15:30]} {[%emt 00:00:07]} Kc7 {[%clk 00:21:37]}
{[%emt 00:00:16]} 20. Qxf6 {[%clk 01:05:00]} {[%emt 00:10:59]} Rhe8 {[%clk
00:19:50]} {[%emt 00:02:16]} 21. Qf7+ {[%clk 00:56:14]} {[%emt 00:09:16]} Kb6
{[%clk 00:19:52]} {[%emt 00:00:28]} 22. Nfxd5+ {[%clk 00:56:35]} {[%emt
00:00:09]} Ka7 {[%clk 00:20:13]} {[%emt 00:00:10]} 23. Qc7 {[%clk 00:56:10]}
{[%emt 00:00:53]} Bb6 {[%clk 00:15:12]} {[%emt 00:05:32]} 24. Qxh7 {[%clk
00:54:29]} {[%emt 00:02:11]} Bxf2 {[%clk 00:14:36]} {[%emt 00:01:06]} 25. Qd3
{[%clk 00:40:46]} {[%emt 00:14:12]} Rh8 {[%clk 00:12:29]} {[%emt 00:02:37]} 26.
Rf1 {[%clk 00:36:35]} {[%emt 00:04:42]} Bc5 {[%clk 00:10:18]} {[%emt 00:02:41]}
27. h3 {[%clk 00:33:09]} {[%emt 00:03:56]} Qd8 {[%clk 00:10:03]} {[%emt
00:00:45]} 28. b4 {[%clk 00:32:11]} {[%emt 00:01:28]} Bb6 {[%clk 00:08:44]}
{[%emt 00:01:49]} 29. Rf6 {[%clk 00:32:15]} {[%emt 00:00:26]} Bc7 {[%clk
00:08:07]} {[%emt 00:01:07]} 30. Rf7 {[%clk 00:23:37]} {[%emt 00:09:07]} Bb6
{[%clk 00:06:40]} {[%emt 00:01:58]} 31. Rf6 {[%clk 00:21:30]} {[%emt 00:02:37]}
Bc7 {[%clk 00:05:58]} {[%emt 00:01:12]} 32. b5 {[%clk 00:20:59]} {[%emt
00:01:01]} Kb8 {[%clk 00:03:13]} {[%emt 00:03:15]} 33. b6 {[%clk 00:20:43]}
{[%emt 00:00:46]} Be5 {[%clk 00:02:52]} {[%emt 00:00:50]} 34. Rf5 {[%clk
00:18:52]} {[%emt 00:02:21]} Bd6 {[%clk 00:03:21]} {[%emt 00:00:02]} 35. Rf7
{[%clk 00:16:03]} {[%emt 00:03:19]} Rf8 {[%clk 00:02:57]} {[%emt 00:00:54]} 36.
Qh7 {[%clk 00:15:45]} {[%emt 00:00:47]} Rxf7 {[%clk 00:02:29]} {[%emt
00:00:59]} 37. Qxf7 {[%clk 00:16:11]} {[%emt 00:00:03]} a5 {[%clk 00:02:36]}
{[%emt 00:00:23]} 38. Ne4 {[%clk 00:14:09]} {[%emt 00:02:32]} Ba3+ {[%clk
00:01:38]} {[%emt 00:01:28]} 39. Kb1 {[%clk 00:14:34]} {[%emt 00:00:05]} Ra6
{[%clk 00:01:37]} {[%emt 00:00:31]} 40. Qf4+ {[%clk 00:13:14]} {[%emt
00:01:50]} Kc8 {[%clk 00:02:06]} {[%emt 00:00:01]} 41. Qf5+ {[%clk 00:13:37]}
{[%emt 00:00:07]} Qd7 {[%clk 00:01:20]} {[%emt 00:01:16]} 42. Qxd7+ {[%clk
00:13:31]} {[%emt 00:00:36]} Kxd7 {[%clk 00:01:49]} {[%emt 00:00:01]} 43. g5
{[%clk 00:13:39]} {[%emt 00:00:22]} Ra8 {[%clk 00:00:48]} {[%emt 00:01:30]} 44.
g6 {[%clk 00:13:58]} {[%emt 00:00:10]} Rh8 {[%clk 00:00:40]} {[%emt 00:00:39]}
45. g7 {[%clk 00:12:51]} {[%emt 00:01:38]} Rxh3 {[%clk 00:01:06]} {[%emt
00:00:03]} 46. c3 {[%clk 00:13:05]} {[%emt 00:00:17]} Rh1+ {[%clk 00:01:19]}
{[%emt 00:00:17]} 47. Kc2 {[%clk 00:13:29]} {[%emt 00:00:06]} Rg1 {[%clk
00:01:42]} {[%emt 00:00:07]} 48. g8=Q {[%clk 00:13:37]} {[%emt 00:00:22]} Rxg8
{[%clk 00:02:09]} {[%emt 00:00:02]} 49. Ndf6+ {[%clk 00:14:00]} {[%emt
00:00:07]} Kc6 {[%clk 00:01:28]} {[%emt 00:01:11]} 50. Nxg8 {[%clk 00:14:26]}
{[%emt 00:00:03]} Kxb6 {[%clk 00:01:43]} {[%emt 00:00:15]} 51. Kb3 {[%clk
00:14:42]} {[%emt 00:00:14]} Bf8 {[%clk 00:02:01]} {[%emt 00:00:12]} 52. Ngf6
{[%clk 00:15:08]} {[%emt 00:00:04]} Kc6 {[%clk 00:02:04]} {[%emt 00:00:28]} 53.
Ka4 {[%clk 00:14:36]} {[%emt 00:01:02]} b6 {[%clk 00:02:10]} {[%emt 00:00:24]}
54. c4 {[%clk 00:14:58]} {[%emt 00:00:08]} Bb4 {[%clk 00:02:02]} {[%emt
00:00:37]} 55. Ng4 {[%clk 00:15:10]} {[%emt 00:00:18]} Be7 {[%clk 00:01:56]}
{[%emt 00:00:37]} 56. Ne5+ {[%clk 00:15:34]} {[%emt 00:00:07]} Kb7 {[%clk
00:02:11]} {[%emt 00:00:15]} 57. Kb5 {[%clk 00:15:59]} {[%emt 00:00:05]} Kc7
{[%clk 00:01:10]} {[%emt 00:01:31]} 58. Nc3 {[%clk 00:16:13]} {[%emt 00:00:16]}
Bc5 {[%clk 00:01:06]} {[%emt 00:00:33]} 59. Nd5+ {[%clk 00:16:26]} {[%emt
00:00:17]} Kd6 {[%clk 00:01:34]} {[%emt 00:00:02]} 1-0

[Event "Campeonato de Aragón Individual Absoluto 2022"]
[Site "Zaragoza, Spain"]
[Date "2022.09.03"]
[Round "8.5"]
[White "Galstyan, David"]
[Black "Sanjuan Segura, Ignacio"]
[Result "1-0"]
[TimeControl "90 min + 30 sg"]
[WhiteElo "2035"]
[BlackElo "1815"]

1. e4 {[%clk 01:30:53]} {[%emt 00:00:05]} e5 {[%clk 01:30:18]} {[%emt
00:00:44]} 2. Nf3 {[%clk 01:31:10]} {[%emt 00:00:13]} Nc6 {[%clk 01:30:43]}
{[%emt 00:00:04]} 3. Bb5 {[%clk 01:31:28]} {[%emt 00:00:12]} a6 {[%clk
01:31:02]} {[%emt 00:00:12]} 4. Ba4 {[%clk 01:31:54]} {[%emt 00:00:04]} Nf6
{[%clk 01:31:25]} {[%emt 00:00:06]} 5. d4 {[%clk 01:32:00]} {[%emt 00:00:24]}
exd4 {[%clk 01:27:54]} {[%emt 00:04:01]} 6. O-O {[%clk 01:32:15]} {[%emt
00:00:16]} b5 {[%clk 01:22:54]} {[%emt 00:05:30]} 7. Bb3 {[%clk 01:32:31]}
{[%emt 00:00:14]} Be7 {[%clk 01:20:34]} {[%emt 00:02:49]} 8. Re1 {[%clk
01:29:48]} {[%emt 00:03:13]} d6 {[%clk 01:18:33]} {[%emt 00:02:31]} 9. Bd5
{[%clk 01:29:51]} {[%emt 00:00:27]} Nxd5 {[%clk 01:15:07]} {[%emt 00:03:56]} 10.
exd5 {[%clk 01:30:05]} {[%emt 00:00:16]} Ne5 {[%clk 01:14:59]} {[%emt
00:00:37]} 11. Nxd4 {[%clk 01:30:09]} {[%emt 00:00:26]} Bd7 {[%clk 01:14:00]}
{[%emt 00:01:29]} 12. Nc3 {[%clk 01:18:58]} {[%emt 00:11:40]} O-O {[%clk
01:14:08]} {[%emt 00:00:23]} 13. b3 {[%clk 01:12:12]} {[%emt 00:07:17]} b4
{[%clk 01:08:37]} {[%emt 00:06:00]} 14. Nce2 {[%clk 01:09:41]} {[%emt
00:03:01]} Re8 {[%clk 01:03:40]} {[%emt 00:05:27]} 15. Bb2 {[%clk 01:07:50]}
{[%emt 00:02:21]} Bf6 {[%clk 00:56:38]} {[%emt 00:07:32]} 16. Ng3 {[%clk
01:05:32]} {[%emt 00:02:49]} Ng6 {[%clk 00:55:10]} {[%emt 00:01:57]} 17. Qd2
{[%clk 01:02:48]} {[%emt 00:03:14]} a5 {[%clk 00:54:10]} {[%emt 00:01:30]} 18.
Rxe8+ {[%clk 00:59:03]} {[%emt 00:04:15]} Qxe8 {[%clk 00:54:22]} {[%emt
00:00:18]} 19. Nh5 {[%clk 00:58:23]} {[%emt 00:01:11]} Qd8 {[%clk 00:53:00]}
{[%emt 00:01:52]} 20. Re1 {[%clk 00:45:48]} {[%emt 00:13:05]} Bg5 {[%clk
00:48:11]} {[%emt 00:05:19]} 21. Qd3 {[%clk 00:42:44]} {[%emt 00:03:34]} Nf4
{[%clk 00:46:53]} {[%emt 00:01:47]} 22. Nxf4 {[%clk 00:41:02]} {[%emt
00:02:13]} Bxf4 {[%clk 00:47:21]} {[%emt 00:00:02]} 23. Nf5 {[%clk 00:40:10]}
{[%emt 00:01:23]} Bxf5 {[%clk 00:44:42]} {[%emt 00:03:09]} 24. Qxf5 {[%clk
00:40:35]} {[%emt 00:00:05]} Bh6 {[%clk 00:43:35]} {[%emt 00:01:37]} 25. Qg4
{[%clk 00:38:56]} {[%emt 00:02:09]} Qc8 {[%clk 00:41:15]} {[%emt 00:02:49]} 26.
Qc4 {[%clk 00:37:36]} {[%emt 00:01:51]} Qd7 {[%clk 00:40:32]} {[%emt 00:01:13]}
27. g3 {[%clk 00:35:17]} {[%emt 00:02:49]} Kf8 {[%clk 00:35:53]} {[%emt
00:05:09]} 28. Kg2 {[%clk 00:31:26]} {[%emt 00:04:21]} Rb8 {[%clk 00:35:59]}
{[%emt 00:00:24]} 29. Re4 {[%clk 00:29:45]} {[%emt 00:02:10]} Rb7 {[%clk
00:33:18]} {[%emt 00:03:12]} 30. Rh4 {[%clk 00:28:35]} {[%emt 00:01:40]} Qb5
{[%clk 00:30:51]} {[%emt 00:02:57]} 31. Qd4 {[%clk 00:28:36]} {[%emt 00:00:29]}
c5 {[%clk 00:29:14]} {[%emt 00:02:07]} 32. Qe4 {[%clk 00:28:18]} {[%emt
00:00:48]} Kg8 {[%clk 00:26:29]} {[%emt 00:03:15]} 33. Qf5 {[%clk 00:22:02]}
{[%emt 00:06:46]} Qd7 {[%clk 00:25:49]} {[%emt 00:01:09]} 34. Re4 {[%clk
00:22:27]} {[%emt 00:00:05]} Kf8 {[%clk 00:24:35]} {[%emt 00:01:43]} 35. Qxh7
{[%clk 00:22:41]} {[%emt 00:00:18]} f6 {[%clk 00:24:23]} {[%emt 00:00:41]} 36.
Bxf6 {[%clk 00:22:00]} {[%emt 00:01:12]} 1-0